fUST/lending_fUST_20251128
["ID","MTS","AMOUNT","RATE_DAILY","PERIOD"]
[394986480,1764259201059,9807.51031258,3.478e-05,2]
[394986481,1764259201084,1807.51948598,3.478e-05,2]
[394986482,1764259202713,300.0,3.512e-05,2]
[394986485,1764259390136,-7892.49051402,3.513e-05,2]
[394986486,1764259390451,-10000.01,3.513e-05,2]
[394986487,1764259390661,-10000.01,3.513e-05,2]
[394986488,1764259391318,-10000.01,3.513e-05,2]
[394986489,1764259392402,-10000.01,3.513e-05,2]
[394986490,1764259394351,-10000.01,3.513e-05,2]
[394986491,1764259398673,-226.99881378,3.513e-05,2]
[394986493,1764259412064,352.66904673,0.00019996,32]
[394986494,1764259412714,352.66904673,0.00019996,32]
[394986495,1764259622705,150.0,0.00017279,30]
[394986496,1764259623118,150.0,0.0001885,30]
[394986497,1764259629822,17470.3214445,3.435e-05,2]
[394986498,1764259654681,300.0,3.477e-05,2]
[394986499,1764259676846,300.0,3.477e-05,2]
[394986500,1764259700045,300.0,3.477e-05,2]
[394986501,1764259700748,150.0,0.00017237,30]
[394986502,1764259701171,150.0,0.00018804,30]
[394986509,1764259722254,300.0,3.477e-05,2]
[394986510,1764259744627,300.0,3.477e-05,2]
[394986511,1764259767103,300.0,3.477e-05,2]
[394986512,1764259779951,150.0,0.00017303,30]
[394986513,1764259780380,150.0,0.00018876,30]
[394986514,1764259786593,-166.61883105,3.512e-05,2]
[394986515,1764259788279,-133.38116895,3.512e-05,2]
[394986516,1764259788303,-150.0,3.512e-05,2]
[394986517,1764259788330,-27.61883105,3.513e-05,2]
[394986518,1764259789274,300.0,3.477e-05,2]
[394986519,1764259790191,-267.45831376,3.513e-05,2]
[394986520,1764259794363,-201.8167471,3.513e-05,2]
[394986521,1764259797432,-203.55812264,3.513e-05,2]
[394986522,1764259798788,-200.0,3.513e-05,2]
[394986523,1764259801986,-166.04038303,3.513e-05,2]
[394986524,1764259803521,-202.54324198,3.513e-05,2]
[394986525,1764259806507,-195.54614795,3.512e-05,2]
[394986526,1764259807992,-297.21617356,3.512e-05,2]
[394986527,1764259810487,-188.0,3.511e-05,2]
[394986528,1764259810510,-23.91748837,3.512e-05,2]
[394986529,1764259811550,2842.96243086,3.477e-05,2]
[394986530,1764259812480,-300.0,3.512e-05,2]
[394986531,1764259814214,-302.78382644,3.512e-05,2]
[394986533,1764259815712,-153.34474457,3.512e-05,2]
[394986534,1764259818250,-293.49214521,3.512e-05,2]
[394986535,1764259821678,-320.78017685,3.512e-05,2]
[394986536,1764259823060,-179.21982315,3.512e-05,2]
[394986537,1764259825558,-440.88129075,3.512e-05,2]
[394986538,1764259826724,1255.20496232,3.477e-05,2]
[394986539,1764259826954,-367.65576066,3.512e-05,2]
[394986540,1764259829318,-223.04978818,3.512e-05,2]
[394986541,1764259830696,-196.31766786,3.512e-05,2]
[394986574,1764259832241,-1559.12554849,3.512e-05,2]
[394986575,1764259832599,-182.82596101,3.512e-05,2]
[394986576,1764259835238,-332.82431673,3.512e-05,2]
[394986577,1764259837154,-362.78096674,3.512e-05,2]
[394986584,1764259838170,-4247.00643768,3.512e-05,2]
[394986586,1764259838182,-776.68808795,3.512e-05,2]
[394986592,1764259838226,-5100.0,3.512e-05,2]
[394986594,1764259838237,-18676.43163179,3.512e-05,2]
[394986595,1764259838710,-190.35256385,3.512e-05,2]
[394986601,1764259840512,-5584.88395591,3.512e-05,2]
[394986602,1764259840524,-37928.9774062,3.512e-05,2]
[394986603,1764259841368,-2e-08,3.512e-05,2]
[394986604,1764259841838,-6813.91916266,3.512e-05,2]
[394986605,1764259841853,-2240.80697012,3.512e-05,2]
[394986606,1764259841862,-25691.5896685,3.513e-05,2]
[394986607,1764259841876,-25534.11735144,3.513e-05,2]
[394986734,1764259846679,-341.0,3.513e-05,2]
[394986735,1764259880971,11850.4356004,3.11e-05,2]
[394986736,1764259891577,300.0,3.477e-05,2]
[394986737,1764259906587,-300.0,3.512e-05,2]
[394986738,1764259906620,-391.63829408,3.513e-05,2]
[394986739,1764259908560,-300.0,3.513e-05,2]
[394986740,1764259910777,-167.17568327,3.513e-05,2]
[394986741,1764259914304,300.0,3.478e-05,2]
[394986742,1764259966089,-239.16051107,3.568e-05,2]
[394986743,1764259966112,-125.00645454,3.604e-05,2]
[394986744,1764259969756,-174.99354546,3.604e-05,2]
[394986745,1764259969780,-115.44644756,3.605e-05,2]
[394986755,1764259971827,-311.0,3.604e-05,2]
[394986756,1764259971851,-0.92810643,3.605e-05,2]
[394986762,1764260006804,150.0,0.00017367,30]
[394986763,1764260007640,150.0,0.00018946,30]
[394986764,1764260012171,305.64650716,0.00019996,32]
[394986765,1764260013703,293.89087227,0.00019996,32]
[394986766,1764260085654,150.0,0.0001739,30]
[394986767,1764260086076,150.0,0.00018971,30]
[394986768,1764260146049,-161.5579197,3.569e-05,2]
[394986769,1764260148007,-134.50410554,3.569e-05,2]
[394986770,1764260148030,-114.17146832,3.569e-05,2]
[394986771,1764260150344,-212.24367788,3.569e-05,2]
[394986772,1764260153705,-6.02134665,3.569e-05,2]
[394986773,1764260153731,-150.0,3.587e-05,2]
[394986774,1764260153754,-143.97865335,3.604e-05,2]
[394986775,1764260155210,-318.90803117,3.604e-05,2]
[394986776,1764260157421,-339.82700162,3.604e-05,2]
[394986780,1764260238681,150.0,0.00017462,30]
[394986781,1764260239087,150.0,0.00019049,30]
[394986782,1764260315298,150.0,0.00017385,30]
[394986783,1764260315716,150.0,0.00018966,30]
[394986784,1764260330083,3170.58,0.0002,30]
[394986785,1764260368960,206.70119687,3.504e-05,2]
[394986786,1764260391648,150.0,0.00017381,30]
[394986787,1764260392056,150.0,0.00018961,30]
[394986788,1764260420650,209.40437684,0.0001001,3]
[394986789,1764260421203,217.15233878,0.0001001,3]
[394986790,1764260421807,225.18697532,0.0001001,3]
[394986791,1764260422468,233.51889341,0.0001001,3]
[394986792,1764260423102,242.15909246,0.0001001,3]
[394986793,1764260423709,251.11897888,0.0001001,3]
[394986794,1764260424340,260.4103811,0.0001001,3]
[394986795,1764260425045,270.0455652,0.0001001,3]
[394986796,1764260425574,280.03725112,0.0001001,3]
[394986797,1764260426176,290.39862941,0.0001001,3]
[394986798,1764260426785,301.1433787,0.0001001,3]
[394986799,1764260446121,-280.34571547,3.687e-05,2]
[394986800,1764260447378,-237.43282263,3.687e-05,2]
[394986801,1764260448784,161.2066069,3.514e-05,2]
[394986802,1764260449951,-228.66283741,3.687e-05,2]
[394986803,1764260451696,-228.56947205,3.687e-05,2]
[394986804,1764260454873,-326.83666516,3.687e-05,2]
[394986805,1764260468368,150.0,0.00018814,30]
[394986806,1764260545836,169.0,0.000204,120]
[394986807,1764260547267,169.0,0.0002142,120]
[394986808,1764260618518,150.0,0.00017502,30]
[394986809,1764260618919,150.0,0.00019093,30]
[394986810,1764260620872,166.523915,3.515e-05,2]
[394986811,1764260622998,245.67322046,0.00014,10]
[394986812,1764260645961,164.67794918,3.651e-05,2]
[394986813,1764260668306,164.67794918,3.651e-05,2]
[394986814,1764260690557,164.67794918,3.651e-05,2]
[394986815,1764260715602,164.67794918,3.651e-05,2]
[394986816,1764260719283,209.40437684,0.0001001,3]
[394986817,1764260719666,217.15233878,0.0001001,3]
[394986818,1764260720283,225.18697532,0.0001001,3]
[394986819,1764260721204,233.51889341,0.0001001,3]
[394986820,1764260721555,242.15909246,0.0001001,3]
[394986821,1764260722156,251.11897888,0.0001001,3]
[394986822,1764260722769,260.4103811,0.0001001,3]
[394986823,1764260723382,164.67794918,3.651e-05,2]
[394986824,1764260723424,270.0455652,0.0001001,3]
[394986825,1764260724019,280.03725112,0.0001001,3]
[394986826,1764260724627,290.39862941,0.0001001,3]
[394986827,1764260725266,301.1433787,0.0001001,3]
[394986828,1764260734374,172406.88,0.0002,30]
[394986829,1764260738740,164.67794918,3.651e-05,2]
[394986830,1764260746793,164.67794918,3.651e-05,2]
[394986831,1764260762160,164.67794918,3.651e-05,2]
[394986833,1764260768526,150.0,0.00015399,30]
[394986834,1764260768994,150.0,0.00016799,30]
[394986835,1764260769346,150.0,0.00018199,30]
[394986836,1764260769749,150.0,0.00019599,30]
[394986837,1764260770048,161.99054256,3.651e-05,2]
[394986838,1764260785231,164.67794918,3.651e-05,2]
[394986839,1764260807610,164.67794918,3.651e-05,2]
[394986840,1764260830298,164.67794918,3.651e-05,2]
[394986841,1764260845420,164.67794918,3.651e-05,2]
[394986842,1764260845518,150.0,0.00015399,30]
[394986843,1764260846290,150.0,0.00016799,30]
[394986844,1764260846363,150.0,0.00018199,30]
[394986845,1764260846735,150.0,0.00019599,30]
[394986846,1764260853260,164.67794918,3.651e-05,2]
[394986847,1764260868911,164.67794918,3.651e-05,2]
[394986848,1764260876787,164.67794918,3.651e-05,2]
[394986849,1764260892444,164.67794918,3.651e-05,2]
[394986850,1764260914593,164.67794918,3.651e-05,2]
[394986851,1764260919734,150.0,0.00015399,30]
[394986852,1764260920554,150.0,0.00016799,30]
[394986853,1764260920821,150.0,0.00018199,30]
[394986854,1764260920981,150.0,0.00019599,30]
[394986855,1764260922189,1871.96040638,3.515e-05,2]
[394986856,1764260922225,4083.83230972,3.515e-05,2]
[394986860,1764260941037,-164.67794918,3.651e-05,2]
[394986861,1764260941068,-11.76168305,3.687e-05,2]
[394986862,1764260986091,-152.91626613,3.614e-05,2]
[394986863,1764260986122,-152.91626613,3.651e-05,2]
[394986864,1764260986155,-52.01541948,3.687e-05,2]
[394986865,1764260994918,150.0,0.00015399,30]
[394986866,1764260995316,150.0,0.00016799,30]
[394986867,1764260995729,150.0,0.00018199,30]
[394986868,1764260996139,150.0,0.00019599,30]
[394986876,1764261027011,209.40437684,0.0001001,3]
[394986877,1764261027627,217.15233878,0.0001001,3]
[394986878,1764261028215,225.18697532,0.0001001,3]
[394986879,1764261028892,233.51889341,0.0001001,3]
[394986880,1764261029420,242.15909246,0.0001001,3]
[394986881,1764261030044,251.11897888,0.0001001,3]
[394986882,1764261030654,260.4103811,0.0001001,3]
[394986883,1764261031300,270.0455652,0.0001001,3]
[394986884,1764261031871,280.03725112,0.0001001,3]
[394986921,1764261032407,-100.90084665,3.687e-05,2]
[394986923,1764261032417,-150.0,3.796e-05,2]
[394986925,1764261032426,-166.523915,3.98e-05,2]
[394986927,1764261032435,-1241.73103091,3.981e-05,2]
[394986929,1764261032447,-779.99660122,3.981e-05,2]
[394986934,1764261032486,290.39862941,0.0001001,3]
[394986977,1764261033078,301.1433787,0.0001001,3]
[394986985,1764261038455,-189.6120248,3.941e-05,2]
[394986986,1764261038466,-3310.3879752,3.981e-05,2]
[394986994,1764261040880,-2e-08,3.981e-05,2]
[394986995,1764261041452,-623.67710875,3.981e-05,2]
[394986996,1764261041461,-1200.0,4.294e-05,2]
[394986997,1764261041470,-533.0,4.295e-05,2]
[394986998,1764261041479,-300.0,4.295e-05,2]
[394986999,1764261041488,-300.0,4.296e-05,2]
[394987000,1764261041497,-300.0,4.296e-05,2]
[394987001,1764261041508,-300.0,4.296e-05,2]
[394987002,1764261041517,-300.0,4.296e-05,2]
[394987003,1764261041526,-300.0,4.296e-05,2]
[394987004,1764261041535,-300.0,4.296e-05,2]
[394987005,1764261041544,-300.0,4.296e-05,2]
[394987006,1764261041554,-300.0,4.296e-05,2]
[394987007,1764261041563,-300.0,4.296e-05,2]
[394987008,1764261041572,-300.0,4.296e-05,2]
[394987009,1764261041582,-300.0,4.296e-05,2]
[394987010,1764261041592,-300.0,4.296e-05,2]
[394987011,1764261041601,-300.0,4.296e-05,2]
[394987012,1764261041610,-300.0,4.296e-05,2]
[394987013,1764261041619,-300.0,4.296e-05,2]
[394987014,1764261041628,-600.0,4.296e-05,2]
[394987015,1764261041638,-166.523915,4.445e-05,2]
[394987016,1764261041649,-5955.7927161,4.447e-05,2]
[394987017,1764261041658,-280.0,4.723e-05,2]
[394987018,1764261041667,-720.0,4.726e-05,2]
[394987019,1764261041678,-500.0,4.873e-05,2]
[394987020,1764261041687,-500.0,4.873e-05,2]
[394987021,1764261041697,-477.44931791,4.873e-05,2]
[394987022,1764261041706,-500.0,4.873e-05,2]
[394987023,1764261041716,-479.5166721,4.873e-05,2]
[394987024,1764261041725,-500.0,4.873e-05,2]
[394987025,1764261041735,-500.0,4.873e-05,2]
[394987026,1764261041746,-582.51869435,4.873e-05,2]
[394987027,1764261041757,-500.0,4.873e-05,2]
[394987028,1764261041766,-500.0,4.873e-05,2]
[394987029,1764261041775,-500.0,4.873e-05,2]
[394987030,1764261041785,-500.0,4.873e-05,2]
[394987031,1764261041794,-1000.0,4.897e-05,2]
[394987032,1764261041803,-1000.0,4.897e-05,2]
[394987033,1764261041812,-1000.0,4.897e-05,2]
[394987034,1764261041821,-1000.0,4.897e-05,2]
[394987035,1764261041831,-1000.0,4.897e-05,2]
[394987036,1764261041840,-888.76814715,4.897e-05,2]
[394987037,1764261041850,-1037.8248214,4.9e-05,2]
[394987090,1764261044709,-1698.76,4.9e-05,2]
[394987101,1764261046717,-623.67710875,3.941e-05,2]
[394987102,1764261046727,-136264.11102724,4.9e-05,2]
[394987103,1764261070288,150.0,0.0001519,30]
[394987104,1764261070683,150.0,0.0001657,30]
[394987105,1764261071073,150.0,0.00017951,30]
[394987106,1764261071477,150.0,0.00019332,30]
[394987107,1764261141937,150.0,0.00017334,30]
[394987108,1764261142338,150.0,0.00018909,30]
[394987109,1764261216807,150.0,0.00015001,30]
[394987110,1764261217307,150.0,0.00016365,30]
[394987111,1764261217706,150.0,0.00017728,30]
[394987112,1764261286758,150.0,0.00015261,30]
[394987113,1764261287153,150.0,0.00016648,30]
[394987114,1764261322710,209.40437684,0.0001001,3]
[394987115,1764261322998,217.15233878,0.0001001,3]
[394987116,1764261323619,225.18697532,0.0001001,3]
[394987117,1764261324240,233.51889341,0.0001001,3]
[394987118,1764261325287,242.15909246,0.0001001,3]
[394987119,1764261325965,251.11897888,0.0001001,3]
[394987120,1764261327009,260.4103811,0.0001001,3]
[394987121,1764261327595,270.0455652,0.0001001,3]
[394987122,1764261328196,280.03725112,0.0001001,3]
[394987123,1764261328807,290.39862941,0.0001001,3]
[394987124,1764261329414,301.1433787,0.0001001,3]
[394987135,1764261549520,150.0,0.00017325,30]
[394987136,1764261621883,209.40437684,0.0001001,3]
[394987137,1764261622501,217.15233878,0.0001001,3]
[394987138,1764261623109,225.18697532,0.0001001,3]
[394987139,1764261623705,233.51889341,0.0001001,3]
[394987140,1764261624333,242.15909246,0.0001001,3]
[394987141,1764261625083,251.11897888,0.0001001,3]
[394987142,1764261625682,260.4103811,0.0001001,3]
[394987143,1764261626290,270.0455652,0.0001001,3]
[394987144,1764261626888,280.03725112,0.0001001,3]
[394987145,1764261627820,290.39862941,0.0001001,3]
[394987146,1764261628110,301.1433787,0.0001001,3]
[394987147,1764261660993,-322.00793969,3.718e-05,2]
[394987148,1764261661016,-160.76272034,3.756e-05,2]
[394987149,1764261664501,-177.25805959,3.756e-05,2]
[394987151,1764261921406,209.40437684,0.0001001,3]
[394987152,1764261922004,217.15233878,0.0001001,3]
[394987153,1764261922629,225.18697532,0.0001001,3]
[394987154,1764261923208,233.51889341,0.0001001,3]
[394987155,1764261924727,242.15909246,0.0001001,3]
[394987156,1764261925169,251.11897888,0.0001001,3]
[394987157,1764261925386,260.4103811,0.0001001,3]
[394987158,1764261925669,270.0455652,0.0001001,3]
[394987159,1764261926271,280.03725112,0.0001001,3]
[394987160,1764261926901,290.39862941,0.0001001,3]
[394987161,1764261927500,301.1433787,0.0001001,3]
[394987167,1764262217920,209.40437684,0.0001001,3]
[394987168,1764262218532,217.15233878,0.0001001,3]
[394987169,1764262219151,225.18697532,0.0001001,3]
[394987170,1764262219804,233.51889341,0.0001001,3]
[394987171,1764262220431,242.15909246,0.0001001,3]
[394987172,1764262221037,251.11897888,0.0001001,3]
[394987173,1764262221670,260.4103811,0.0001001,3]
[394987174,1764262222319,270.0455652,0.0001001,3]
[394987175,1764262222936,280.03725112,0.0001001,3]
[394987176,1764262223531,290.39862941,0.0001001,3]
[394987177,1764262224167,301.1433787,0.0001001,3]
[394987218,1764262232767,-150.0,3.784e-05,2]
[394987220,1764262232777,-431.47367509,3.794e-05,2]
[394987230,1764262232876,-880.68953271,3.794e-05,2]
[394987233,1764262232887,-212.1073563,3.804e-05,2]
[394987235,1764262232897,-219.97417208,4.652e-05,2]
[394987237,1764262232907,-500.0,4.673e-05,2]
[394987238,1764262232917,-146.56607039,4.673e-05,2]
[394987277,1764262238519,-353.43392961,4.673e-05,2]
[394987279,1764262238530,-500.0,4.673e-05,2]
[394987282,1764262238546,-500.0,4.673e-05,2]
[394987284,1764262238559,-300.0,4.699e-05,2]
[394987287,1764262238570,-145.15526723,4.699e-05,2]
[394987290,1764262238596,-843.84473277,4.699e-05,2]
[394987292,1764262238606,-157.15525313,4.7e-05,2]
[394987317,1764262240832,-4569.9783086,4.7e-05,2]
[394987318,1764262240845,-8732.68344388,4.7e-05,2]
[394987319,1764262240857,-4779.3437609,4.7e-05,2]
[394987411,1764262244866,-484.29175519,4.7e-05,2]
[394987412,1764262244878,-1516.14025619,4.7e-05,2]
[394987413,1764262244889,-2391.46310972,4.7e-05,2]
[394987423,1764262246659,-1518.5032785,4.7e-05,2]
[394987424,1764262322780,155.36406012,0.000215,120]
[394987432,1764262515728,209.40437684,0.0001001,3]
[394987433,1764262515952,217.15233878,0.0001001,3]
[394987434,1764262516282,225.18697532,0.0001001,3]
[394987435,1764262516985,233.51889341,0.0001001,3]
[394987436,1764262517596,242.15909246,0.0001001,3]
[394987437,1764262518201,251.11897888,0.0001001,3]
[394987438,1764262519332,260.4103811,0.0001001,3]
[394987439,1764262519889,270.0455652,0.0001001,3]
[394987440,1764262520521,280.03725112,0.0001001,3]
[394987441,1764262521123,290.39862941,0.0001001,3]
[394987442,1764262521752,301.1433787,0.0001001,3]
[394987443,1764262822556,209.40437684,0.0001001,3]
[394987444,1764262822969,217.15233878,0.0001001,3]
[394987445,1764262823578,225.18697532,0.0001001,3]
[394987446,1764262824203,233.51889341,0.0001001,3]
[394987447,1764262824818,242.15909246,0.0001001,3]
[394987448,1764262825407,251.11897888,0.0001001,3]
[394987449,1764262825997,260.4103811,0.0001001,3]
[394987450,1764262826592,270.0455652,0.0001001,3]
[394987451,1764262827223,280.03725112,0.0001001,3]
[394987452,1764262827838,290.39862941,0.0001001,3]
[394987453,1764262828453,301.1433787,0.0001001,3]
[394987454,1764262846963,169.72596,1.808e-05,2]
[394987455,1764262847151,169.72596,3.617e-05,2]
[394987457,1764263118454,209.40437684,0.0001001,3]
[394987458,1764263119048,217.15233878,0.0001001,3]
[394987459,1764263119648,225.18697532,0.0001001,3]
[394987460,1764263120333,233.51889341,0.0001001,3]
[394987461,1764263120863,242.15909246,0.0001001,3]
[394987462,1764263121463,251.11897888,0.0001001,3]
[394987463,1764263122069,260.4103811,0.0001001,3]
[394987464,1764263122664,270.0455652,0.0001001,3]
[394987465,1764263123290,280.03725112,0.0001001,3]
[394987466,1764263123911,290.39862941,0.0001001,3]
[394987467,1764263124531,301.1433787,0.0001001,3]
[394987468,1764263204097,-667.0,3.927e-05,2]
[394987469,1764263204118,-1200.0,3.927e-05,2]
[394987470,1764263204137,-300.0,3.927e-05,2]
[394987471,1764263204157,-150.0,3.928e-05,2]
[394987472,1764263204176,-13515.965294,3.928e-05,2]
[394987481,1764263418095,209.40437684,0.0001001,3]
[394987482,1764263418693,217.15233878,0.0001001,3]
[394987483,1764263419311,225.18697532,0.0001001,3]
[394987484,1764263419905,233.51889341,0.0001001,3]
[394987485,1764263420507,242.15909246,0.0001001,3]
[394987486,1764263421117,251.11897888,0.0001001,3]
[394987487,1764263421946,260.4103811,0.0001001,3]
[394987488,1764263422314,270.0455652,0.0001001,3]
[394987489,1764263422913,280.03725112,0.0001001,3]
[394987490,1764263423527,290.39862941,0.0001001,3]
[394987491,1764263424123,301.1433787,0.0001001,3]
[394987546,1764263437791,-2932.9302809,3.928e-05,2]
[394987547,1764263437801,-150.0,3.967e-05,2]
[394987548,1764263437809,-300.0,4.005e-05,2]
[394987549,1764263437819,-385.0,4.005e-05,2]
[394987550,1764263437828,-300.0,4.006e-05,2]
[394987551,1764263437837,-300.0,4.006e-05,2]
[394987552,1764263437846,-300.0,4.006e-05,2]
[394987553,1764263437855,-300.0,4.006e-05,2]
[394987554,1764263437864,-300.0,4.006e-05,2]
[394987555,1764263437873,-300.0,4.006e-05,2]
[394987556,1764263437882,-300.0,4.006e-05,2]
[394987557,1764263437891,-300.0,4.006e-05,2]
[394987558,1764263437901,-300.0,4.006e-05,2]
[394987559,1764263437910,-300.0,4.006e-05,2]
[394987560,1764263437919,-300.0,4.006e-05,2]
[394987561,1764263437928,-300.0,4.006e-05,2]
[394987562,1764263437938,-300.0,4.006e-05,2]
[394987563,1764263437947,-300.0,4.006e-05,2]
[394987564,1764263437957,-300.0,4.006e-05,2]
[394987565,1764263437966,-420.0,4.406e-05,2]
[394987566,1764263437975,-217.01687302,4.573e-05,2]
[394987567,1764263437984,-500.0,4.573e-05,2]
[394987568,1764263437993,-500.0,4.573e-05,2]
[394987569,1764263438002,-500.0,4.573e-05,2]
[394987570,1764263438011,-500.0,4.573e-05,2]
[394987571,1764263438021,-482.96952747,4.573e-05,2]
[394987572,1764263438031,-500.0,4.573e-05,2]
[394987573,1764263438040,-500.0,4.573e-05,2]
[394987574,1764263438049,-500.0,4.573e-05,2]
[394987575,1764263438059,-501.87475376,4.573e-05,2]
[394987576,1764263438068,-500.0,4.573e-05,2]
[394987577,1764263438078,-500.0,4.573e-05,2]
[394987578,1764263438087,-576.40443164,4.573e-05,2]
[394987579,1764263438096,-500.0,4.573e-05,2]
[394987580,1764263438106,-500.0,4.573e-05,2]
[394987581,1764263438116,-483.87838358,4.573e-05,2]
[394987582,1764263438126,-500.08406698,4.573e-05,2]
[394987583,1764263438135,-500.0,4.573e-05,2]
[394987584,1764263438145,-500.0,4.573e-05,2]
[394987585,1764263438154,-500.0,4.573e-05,2]
[394987586,1764263438163,-500.0,4.573e-05,2]
[394987587,1764263438173,-500.0,4.573e-05,2]
[394987588,1764263438185,-501.3951329,4.573e-05,2]
[394987589,1764263438195,-500.0,4.573e-05,2]
[394987590,1764263438205,-500.98176125,4.573e-05,2]
[394987591,1764263438215,-500.0,4.573e-05,2]
[394987592,1764263438224,-500.0,4.573e-05,2]
[394987593,1764263438234,-500.0,4.573e-05,2]
[394987594,1764263438243,-97415.65804989,4.6e-05,2]
[394987650,1764263440739,-16622.70961056,4.6e-05,2]
[394987651,1764263440750,-714.16590829,4.6e-05,2]
[394987703,1764263444950,-1759.218366,4.6e-05,2]
[394987707,1764263445982,-5100.0,4.6e-05,2]
[394987708,1764263458731,164.564164,3.897e-05,61]
[394987709,1764263458954,164.564164,3.897e-05,120]
[394987710,1764263722800,209.40437684,0.0001001,3]
[394987711,1764263723431,217.15233878,0.0001001,3]
[394987712,1764263724026,225.18697532,0.0001001,3]
[394987713,1764263724680,233.51889341,0.0001001,3]
[394987714,1764263725433,242.15909246,0.0001001,3]
[394987715,1764263726021,251.11897888,0.0001001,3]
[394987716,1764263726990,260.4103811,0.0001001,3]
[394987717,1764263727729,270.0455652,0.0001001,3]
[394987718,1764263727867,280.03725112,0.0001001,3]
[394987719,1764263728491,290.39862941,0.0001001,3]
[394987720,1764263729172,301.1433787,0.0001001,3]
[394987728,1764263893215,1096.29282626,3.681e-05,2]
[394987730,1764264021390,209.40437684,0.0001001,3]
[394987731,1764264021676,217.15233878,0.0001001,3]
[394987732,1764264022244,225.18697532,0.0001001,3]
[394987733,1764264022816,233.51889341,0.0001001,3]
[394987734,1764264023444,242.15909246,0.0001001,3]
[394987735,1764264024040,251.11897888,0.0001001,3]
[394987736,1764264024644,260.4103811,0.0001001,3]
[394987737,1764264025296,270.0455652,0.0001001,3]
[394987738,1764264025917,280.03725112,0.0001001,3]
[394987739,1764264026524,290.39862941,0.0001001,3]
[394987740,1764264027128,301.1433787,0.0001001,3]
[394987741,1764264052121,518.29691308,0.0002,30]
[394987742,1764264059511,164.564164,3.706e-05,2]
[394987743,1764264067575,164.564164,3.706e-05,2]
[394987744,1764264083317,164.564164,3.706e-05,2]
[394987745,1764264163221,164.564164,3.706e-05,2]
[394987746,1764264313167,209.40437684,0.0001001,3]
[394987747,1764264313767,217.15233878,0.0001001,3]
[394987748,1764264314688,225.18697532,0.0001001,3]
[394987749,1764264315011,233.51889341,0.0001001,3]
[394987750,1764264315619,242.15909246,0.0001001,3]
[394987751,1764264315716,500.0,0.0001001,3]
[394987752,1764264316261,251.11897888,0.0001001,3]
[394987753,1764264316789,500.0,0.0001001,3]
[394987754,1764264316935,500.0,0.0001001,3]
[394987755,1764264317294,260.4103811,0.0001001,3]
[394987756,1764264317545,500.0,0.0001001,3]
[394987757,1764264318063,270.0455652,0.0001001,3]
[394987758,1764264318173,500.0,0.0001001,3]
[394987759,1764264318521,280.03725112,0.0001001,3]
[394987760,1764264318762,250.0,0.0001001,3]
[394987761,1764264319114,290.39862941,0.0001001,3]
[394987762,1764264319707,301.1433787,0.0001001,3]
[394987763,1764264327660,209.40437684,0.0001001,3]
[394987766,1764264467430,431.4736751,3.641e-05,2]
[394987767,1764264480156,10000.01,3.67e-05,2]
[394987768,1764264480178,10000.01,3.67e-05,2]
[394987769,1764264480201,10000.01,3.67e-05,2]
[394987770,1764264480222,10000.01,3.67e-05,2]
[394987771,1764264480244,10000.01,3.67e-05,2]
[394987772,1764264480265,10000.01,3.67e-05,2]
[394987773,1764264480286,1647.6462761,3.67e-05,2]
[394987776,1764264571033,-150.0,3.724e-05,2]
[394987777,1764264571058,-88.0120222,3.753e-05,2]
[394987778,1764264613554,209.40437684,0.0001001,3]
[394987779,1764264614166,217.15233878,0.0001001,3]
[394987780,1764264614810,225.18697532,0.0001001,3]
[394987781,1764264615464,233.51889341,0.0001001,3]
[394987782,1764264616015,242.15909246,0.0001001,3]
[394987783,1764264616632,251.11897888,0.0001001,3]
[394987784,1764264617247,260.4103811,0.0001001,3]
[394987785,1764264617840,270.0455652,0.0001001,3]
[394987786,1764264618506,280.03725112,0.0001001,3]
[394987787,1764264619146,290.39862941,0.0001001,3]